[Event "48th Indian U15-ch Open 2023"]
[Site "Jalgaon"]
[Date "2023.12.29"]
[Round "4.8"]
[White "Mrithyunjay Mahadevan"]
[Black "Nalinakhya Kashyap"]
[Result "1-0"]
[WhiteElo "1944"]
[BlackElo "1558"]
[PlyCount "87"]
[EventDate "2023.12.30"]
[EventType "swiss"]
[EventCountry "IND"]
[TimeControl "5400+30"]

1. c4 {[%emt 0:00:09]} e5 {[%emt 0:00:05]} 2. g3 {[%emt 0:00:08]} c6 {[%emt 0:00:05]} 3. d4 {[%emt 0:02:38]} e4 {[%emt 0:00:19]} 4. f3 {[%emt 0:27:25]} Nf6 {[%emt 0:08:27]} 5. Nc3 {[%emt 0:04:42]} Bb4 {[%emt 0:01:47]} 6. Qb3 {[%emt 0:12:45]} c5 {[%emt 0:06:46]} 7. d5 {[%emt 0:01:46]} O-O {[%emt 0:03:59]} 8. Bg5 {[%emt 0:02:37]} d6 {[%emt 0:04:21]} 9. fxe4 {[%emt 0:02:51]} Nbd7 {[%emt 0:02:11]} 10. Nf3 {[%emt 0:00:38]} Qa5 {[%emt 0:05:02]} 11. Nd2 {[%emt 0:01:00]} h6 {[%emt 0:03:32]} 12. Bf4 {[%emt 0:04:42]} Ne5 {[%emt 0:06:31]} 13. Rc1 {[%emt 0:00:49]} Qd8 {[%emt 0:06:08]} 14. Bxe5 {[%emt 0:02:32]} dxe5 {[%emt 0:00:03]} 15. a3 {[%emt 0:00:07]} Ba5 {[%emt 0:02:57]} 16. Bg2 {[%emt 0:05:11]} Ng4 {[%emt 0:01:23]} 17. h3 {[%emt 0:02:05]} Ne3 {[%emt 0:02:21]} 18. Kf2 {[%emt 0:00:06]} Nxg2 {[%emt 0:03:47]} 19. Kxg2 {[%emt 0:00:09]} Qg5 {[%emt 0:03:53]} 20. Qc2 {[%emt 0:00:15]} f5 {[%emt 0:02:35]} 21. exf5 {[%emt 0:09:38]} Bxf5 {[%emt 0:01:12]} 22. e4 {[%emt 0:00:46]} Bd7 {[%emt 0:01:00]} 23. Qd3 {[%emt 0:00:24]} Qh5 {[%emt 0:03:03]} 24. Nf3 {[%emt 0:01:46]} Rf6 {[%emt 0:00:16]} 25. Ne2 {[%emt 0:00:51]} Raf8 {[%emt 0:00:12]} 26. Rcf1 {[%emt 0:00:08]} b5 {[%emt 0:02:44]} 27. b3 {[%emt 0:00:42]} bxc4 {[%emt 0:01:28]} 28. bxc4 {[%emt 0:00:08]} Rb8 {[%emt 0:00:20]} 29. g4 {[%emt 0:00:53]} Qe8 {[%emt 0:08:23]} 30. Rb1 {[%emt 0:00:16]} Rbb6 {[%emt 0:02:33]} 31. Rxb6 {[%emt 0:00:57]} axb6 {[%emt 0:00:04]} 32. Rd1 {[%emt 0:05:40]} b5 {[%emt 0:00:52]} 33. d6 {[%emt 0:00:49]} bxc4 {[%emt 0:03:31]} 34. Qxc4+ {[%emt 0:00:06]} Kh7 {[%emt 0:00:36]} 35. Qxc5 {[%emt 0:00:26]} Qd8 {[%emt 0:00:36]} 36. Qxe5 {[%emt 0:00:16]} Bb6 {[%emt 0:02:25]} 37. Ng3 {[%emt 0:02:44]} Ba4 {[%emt 0:01:29]} 38. Rd3 {[%emt 0:00:35]} Qf8 {[%emt 0:02:19]} 39. d7 {[%emt 0:03:48]} Rf7 {[%emt 0:01:59]} 40. Qe6 {[%emt 0:00:49]} Bd8 {[%emt 0:02:39]} 41. Qe8 {[%emt 0:01:10]} Qe7 {[%emt 0:00:36]} 42. Nf5 {[%emt 0:00:16]} Bxd7 {[%emt 0:01:21]} 43. Qxe7 {[%emt 0:00:08]} Bxe7 {[%emt 0:00:31]} 44. Rxd7 {[%emt 0:00:02]} 1-0

[Event "48th Indian U15-ch Open 2023"]
[Site "Jalgaon"]
[Date "2023.12.29"]
[Round "4.9"]
[White "Guru Prakash"]
[Black "Daksh Goyal"]
[Result "0-1"]
[WhiteElo "1701"]
[BlackElo "1814"]
[PlyCount "84"]
[EventDate "2023.12.30"]
[EventType "swiss"]
[EventCountry "IND"]
[TimeControl "5400+30"]

1. e4 {[%emt 0:00:03]} c6 {[%emt 0:01:00]} 2. Nf3 {[%emt 0:00:25]} d5 {[%emt 0:00:03]} 3. Nc3 {[%emt 0:00:06]} Bg4 {[%emt 0:00:05]} 4. Be2 {[%emt 0:01:00]} Nf6 {[%emt 0:00:28]} 5. d3 {[%emt 0:12:22]} e6 {[%emt 0:32:50]} 6. O-O {[%emt 0:03:03]} Bb4 {[%emt 0:06:16]} 7. Bd2 {[%emt 0:06:03]} a5 {[%emt 0:07:35]} 8. a3 {[%emt 0:03:47]} Be7 {[%emt 0:01:05]} 9. Ne5 {[%emt 0:07:16]} Bxe2 {[%emt 0:00:28]} 10. Qxe2 {[%emt 0:00:09]} O-O {[%emt 0:00:40]} 11. f4 {[%emt 0:03:00]} b5 {[%emt 0:03:57]} 12. g4 {[%emt 0:10:09]} Nfd7 {[%emt 0:04:56]} 13. Nf3 {[%emt 0:06:23]} dxe4 {[%emt 0:02:18]} 14. Nxe4 {[%emt 0:02:14]} c5 {[%emt 0:05:02]} 15. Be3 {[%emt 0:05:13]} Nc6 {[%emt 0:04:02]} 16. d4 {[%emt 0:02:29]} cxd4 {[%emt 0:05:05]} 17. Nxd4 {[%emt 0:00:03]} Nxd4 {[%emt 0:00:53]} 18. Bxd4 {[%emt 0:00:05]} Nf6 {[%emt 0:09:06]} 19. Rad1 {[%emt 0:03:50]} Nxe4 {[%emt 0:00:44]} 20. Qxe4 {[%emt 0:00:02]} Qc7 {[%emt 0:01:58]} 21. f5 {[%emt 0:01:44]} Ra6 {[%emt 0:03:40]} 22. c3 {[%emt 0:06:15]} exf5 {[%emt 0:02:02]} 23. Rxf5 {[%emt 0:00:52]} Re6 {[%emt 0:00:55]} 24. Qf3 {[%emt 0:00:34]} Bd6 {[%emt 0:01:47]} 25. h3 {[%emt 0:04:44]} Be5 {[%emt 0:01:14]} 26. Bf2 {[%emt 0:05:22]} g6 {[%emt 0:00:49]} 27. Rxe5 {[%emt 0:05:01]} Rxe5 {[%emt 0:01:12]} 28. Rd4 {[%emt 0:02:35]} Re6 {[%emt 0:00:39]} 29. Rd5 {[%emt 0:00:01]} Qc6 {[%emt 0:00:49]} 30. Qd3 {[%emt 0:00:12]} Rb8 {[%emt 0:00:41]} 31. Bg3 {[%emt 0:00:28]} Qb6+ {[%emt 0:01:10]} 32. Bf2 {[%emt 0:00:01]} Qc6 {[%emt 0:00:36]} 33. Bg3 {[%emt 0:00:01]} Rbe8 {[%emt 0:01:10]} 34. Qxb5 {[%emt 0:01:56]} Qc8 {[%emt 0:01:14]} 35. Rd2 {[%emt 0:00:17]} Re3 {[%emt 0:00:26]} 36. Rg2 {[%emt 0:06:10]} Qd8 {[%emt 0:00:36]} 37. Kh2 {[%emt 0:03:16]} Qd1 {[%emt 0:00:45]} 38. b4 {[%emt 0:01:35]} Re2 {[%emt 0:00:21]} 39. bxa5 {[%emt 0:00:26]} Qf1 {[%emt 0:00:26]} 40. Bf2 {[%emt 0:00:18]} R8e6 {[%emt 0:00:48]} 41. Qb8+ {[%emt 0:00:33]} Kg7 {[%emt 0:00:16]} 42. Qf4 {[%emt 0:00:02]} Rf6 {[%emt 0:00:43]} 0-1

[Event "48th Indian U15-ch Open 2023"]
[Site "Jalgaon"]
[Date "2023.12.29"]
[Round "4.10"]
[White "Jain, Kushagra"]
[Black "Agnivo Chakraborty"]
[Result "1-0"]
[WhiteElo "1804"]
[BlackElo "1690"]
[PlyCount "97"]
[EventDate "2023.12.30"]
[EventType "swiss"]
[EventCountry "IND"]
[TimeControl "5400+30"]

1. e4 {[%emt 0:00:22]} e5 {[%emt 0:00:05]} 2. Nf3 {[%emt 0:00:09]} Nc6 {[%emt 0:00:05]} 3. Bb5 {[%emt 0:00:07]} a6 {[%emt 0:00:05]} 4. Ba4 {[%emt 0:00:05]} Nge7 {[%emt 0:00:06]} 5. O-O {[%emt 0:06:33]} g6 {[%emt 0:00:10]} 6. c3 {[%emt 0:06:36]} Bg7 {[%emt 0:00:07]} 7. d4 {[%emt 0:00:11]} exd4 {[%emt 0:00:07]} 8. cxd4 {[%emt 0:00:32]} O-O {[%emt 0:00:22]} 9. d5 {[%emt 0:09:15]} Na5 {[%emt 0:00:08]} 10. Nc3 {[%emt 0:07:51]} b5 {[%emt 0:00:10]} 11. Bc2 {[%emt 0:00:55]} d6 {[%emt 0:00:07]} 12. Nd4 {[%emt 0:02:55]} Bb7 {[%emt 0:01:44]} 13. Bg5 {[%emt 0:01:15]} b4 {[%emt 0:10:27]} 14. Nce2 {[%emt 0:00:29]} c5 {[%emt 0:00:18]} 15. dxc6 {[%emt 0:00:46]} Naxc6 {[%emt 0:00:08]} 16. Nxc6 {[%emt 0:03:39]} Bxc6 {[%emt 0:00:06]} 17. Nd4 {[%emt 0:00:05]} Bb7 {[%emt 0:00:54]} 18. Qd2 {[%emt 0:04:24]} Rb8 {[%emt 0:04:20]} 19. Rad1 {[%emt 0:05:01]} Re8 {[%emt 0:23:57]} 20. Ba4 {[%emt 0:02:42]} Rf8 {[%emt 0:05:54]} 21. Rfe1 {[%emt 0:06:26]} Qa5 {[%emt 0:10:07]} 22. Bxe7 {[%emt 0:02:44]} Qxa4 {[%emt 0:00:05]} 23. Bxf8 {[%emt 0:00:15]} Rxf8 {[%emt 0:01:52]} 24. b3 {[%emt 0:08:56]} Qa3 {[%emt 0:02:46]} 25. Rc1 {[%emt 0:03:26]} Ba8 {[%emt 0:03:29]} 26. Rc4 {[%emt 0:04:19]} d5 {[%emt 0:00:56]} 27. exd5 {[%emt 0:02:19]} Bxd5 {[%emt 0:00:07]} 28. Qxb4 {[%emt 0:01:28]} Qb2 {[%emt 0:01:56]} 29. Qc3 {[%emt 0:05:01]} Qxc3 {[%emt 0:02:46]} 30. Rxc3 {[%emt 0:00:04]} Bxd4 {[%emt 0:00:25]} 31. Rd3 {[%emt 0:00:02]} Bxb3 {[%emt 0:00:38]} 32. axb3 {[%emt 0:02:44]} Bb6 {[%emt 0:02:16]} 33. Rd6 {[%emt 0:02:58]} Rb8 {[%emt 0:00:18]} 34. Rc1 {[%emt 0:02:52]} a5 {[%emt 0:01:25]} 35. g4 {[%emt 0:00:19]} Kf8 {[%emt 0:03:30]} 36. Rd5 {[%emt 0:01:18]} Bd8 {[%emt 0:03:59]} 37. g5 {[%emt 0:01:57]} Ke8 {[%emt 0:01:55]} 38. Rc3 {[%emt 0:01:12]} Kf8 {[%emt 0:02:12]} 39. Rcd3 {[%emt 0:02:36]} Ke8 {[%emt 0:03:18]} 40. Kg2 {[%emt 0:01:14]} Ra8 {[%emt 0:00:34]} 41. h4 {[%emt 0:00:47]} Be7 {[%emt 0:00:20]} 42. R3d4 {[%emt 0:02:02]} Ra7 {[%emt 0:02:08]} 43. Re5 {[%emt 0:00:54]} Kf8 {[%emt 0:01:06]} 44. Rdd5 {[%emt 0:01:01]} a4 {[%emt 0:00:41]} 45. bxa4 {[%emt 0:00:19]} Rxa4 {[%emt 0:00:15]} 46. Rd7 {[%emt 0:00:07]} Ba3 {[%emt 0:00:36]} 47. Rd8+ {[%emt 0:00:06]} Kg7 {[%emt 0:00:05]} 48. Ree8 {[%emt 0:00:04]} f6 {[%emt 0:01:43]} 49. Rd7+ {[%emt 0:00:12]} 1-0

[Event "48th Indian U15-ch Open 2023"]
[Site "Jalgaon"]
[Date "2023.12.30"]
[Round "5.1"]
[White "Md Imran"]
[Black "Arshpreet Singh"]
[Result "1-0"]
[WhiteElo "2174"]
[BlackElo "1878"]
[PlyCount "30"]
[EventDate "2023.12.30"]
[EventType "swiss"]
[EventCountry "IND"]
[TimeControl "5400+30"]

1. e4 {[%emt 0:00:33]} c5 {[%emt 0:00:08]} 2. Nf3 {[%emt 0:00:02]} Nc6 {[%emt 0:00:03]} 3. d4 {[%emt 0:00:10]} cxd4 {[%emt 0:00:03]} 4. Nxd4 {[%emt 0:00:05]} g6 {[%emt 0:00:03]} 5. c4 {[%emt 0:00:08]} Bg7 {[%emt 0:00:03]} 6. Be3 {[%emt 0:00:06]} Nf6 {[%emt 0:00:03]} 7. Nc3 {[%emt 0:00:05]} O-O {[%emt 0:00:05]} 8. Be2 {[%emt 0:00:22]} d6 {[%emt 0:00:05]} 9. Qd2 {[%emt 0:00:04]} Bd7 {[%emt 0:00:18]} 10. O-O {[%emt 0:00:50]} Nxd4 {[%emt 0:01:45]} 11. Bxd4 {[%emt 0:01:12]} a5 {[%emt 0:00:06]} 12. Rfd1 {[%emt 0:07:13]} a4 {[%emt 0:02:13]} 13. c5 {[%emt 0:07:11]} dxc5 {[%emt 0:11:19]} 14. Bxf6 {[%emt 0:01:57]} Bxf6 {[%emt 0:00:04]} 15. Qxd7 {[%emt 0:00:13]} Qb6 {[%emt 0:00:02]} 1-0

[Event "48th Indian U15-ch Open 2023"]
[Site "Jalgaon"]
[Date "2023.12.30"]
[Round "5.2"]
[White "Bhoir Paras Dilip"]
[Black "Vignesh Advaith Vemula"]
[Result "1/2-1/2"]
[WhiteElo "1808"]
[BlackElo "2028"]
[PlyCount "91"]
[EventDate "2023.12.30"]
[EventType "swiss"]
[EventCountry "IND"]
[TimeControl "5400+30"]

1. e4 {[%emt 0:00:05]} c5 {[%emt 0:00:09]} 2. Nf3 {[%emt 0:00:07]} d6 {[%emt 0:00:05]} 3. d4 {[%emt 0:00:05]} cxd4 {[%emt 0:00:05]} 4. Nxd4 {[%emt 0:00:05]} Nf6 {[%emt 0:00:09]} 5. Nc3 {[%emt 0:00:03]} a6 {[%emt 0:00:06]} 6. Be2 {[%emt 0:00:04]} e5 {[%emt 0:01:28]} 7. Nb3 {[%emt 0:00:07]} Be7 {[%emt 0:00:06]} 8. O-O {[%emt 0:00:07]} O-O {[%emt 0:00:08]} 9. Kh1 {[%emt 0:00:04]} Nc6 {[%emt 0:02:12]} 10. f3 {[%emt 0:00:08]} Be6 {[%emt 0:00:49]} 11. Nd5 {[%emt 0:00:06]} a5 {[%emt 0:00:06]} 12. Be3 {[%emt 0:00:41]} a4 {[%emt 0:00:06]} 13. Nc1 {[%emt 0:00:08]} Bxd5 {[%emt 0:00:40]} 14. exd5 {[%emt 0:00:05]} Nd4 {[%emt 0:00:08]} 15. Bxd4 {[%emt 0:02:44]} exd4 {[%emt 0:00:05]} 16. Qxd4 {[%emt 0:00:11]} Qa5 {[%emt 0:00:10]} 17. c4 {[%emt 0:10:43]} Nd7 {[%emt 0:00:33]} 18. Rb1 {[%emt 0:05:19]} Bf6 {[%emt 0:02:49]} 19. Qd1 {[%emt 0:04:11]} Nc5 {[%emt 0:11:02]} 20. b4 {[%emt 0:08:22]} axb3 {[%emt 0:00:10]} 21. Nxb3 {[%emt 0:03:08]} Nxb3 {[%emt 0:01:44]} 22. Rxb3 {[%emt 0:01:03]} Qc7 {[%emt 0:19:02]} 23. Qc2 {[%emt 0:05:30]} Bd4 {[%emt 0:01:28]} 24. Bd3 {[%emt 0:08:05]} g6 {[%emt 0:04:38]} 25. Qd2 {[%emt 0:11:37]} Bc5 {[%emt 0:03:12]} 26. f4 {[%emt 0:04:25]} f5 {[%emt 0:02:39]} 27. Re1 {[%emt 0:03:53]} b6 {[%emt 0:04:01]} 28. Re2 {[%emt 0:02:28]} Qg7 {[%emt 0:01:14]} 29. Qc3 {[%emt 0:04:21]} Rfe8 {[%emt 0:05:56]} 30. Rxe8+ {[%emt 0:06:16]} Rxe8 {[%emt 0:00:04]} 31. Qxg7+ {[%emt 0:00:10]} Kxg7 {[%emt 0:00:03]} 32. Rb1 {[%emt 0:00:19]} Ra8 {[%emt 0:04:35]} 33. Rb2 {[%emt 0:00:13]} Ra3 {[%emt 0:00:59]} 34. Be2 {[%emt 0:00:19]} h6 {[%emt 0:01:36]} 35. g3 {[%emt 0:05:19]} g5 {[%emt 0:01:43]} 36. Kg2 {[%emt 0:00:17]} gxf4 {[%emt 0:01:37]} 37. gxf4 {[%emt 0:00:06]} Kf6 {[%emt 0:02:24]} 38. h4 {[%emt 0:02:53]} Bd4 {[%emt 0:03:43]} 39. Rd2 {[%emt 0:00:54]} Bc5 {[%emt 0:01:14]} 40. Bh5 {[%emt 0:00:59]} Be3 {[%emt 0:02:30]} 41. Re2 {[%emt 0:00:11]} Bxf4 {[%emt 0:00:05]} 42. Re6+ {[%emt 0:00:07]} Kg7 {[%emt 0:00:05]} 43. Re7+ {[%emt 0:00:20]} Kf6 {[%emt 0:00:10]} 44. Re6+ {[%emt 0:00:06]} Kg7 {[%emt 0:00:04]} 45. Re7+ {[%emt 0:00:49]} Kf6 {[%emt 0:00:13]} 46. Re6+ {[%emt 0:00:07]} 1/2-1/2

[Event "48th Indian U15-ch Open 2023"]
[Site "Jalgaon"]
[Date "2023.12.30"]
[Round "5.3"]
[White "Mayank Chakraborty"]
[Black "Jain, Kushagra"]
[Result "1-0"]
[WhiteElo "2403"]
[BlackElo "1804"]
[PlyCount "135"]
[EventDate "2023.12.30"]
[EventType "swiss"]
[EventCountry "IND"]
[TimeControl "5400+30"]

1. d4 {[%emt 0:00:02]} Nf6 {[%emt 0:00:20]} 2. c4 {[%emt 0:00:02]} c5 {[%emt 0:00:09]} 3. d5 {[%emt 0:00:01]} b5 {[%emt 0:00:05]} 4. cxb5 {[%emt 0:00:02]} a6 {[%emt 0:00:05]} 5. bxa6 {[%emt 0:00:04]} e6 {[%emt 0:00:04]} 6. Nc3 {[%emt 0:03:29]} exd5 {[%emt 0:00:33]} 7. Nxd5 {[%emt 0:01:42]} Be7 {[%emt 0:00:08]} 8. Nxe7 {[%emt 0:08:20]} Qxe7 {[%emt 0:00:05]} 9. e3 {[%emt 0:00:08]} O-O {[%emt 0:02:23]} 10. Nf3 {[%emt 0:01:06]} Rxa6 {[%emt 0:05:13]} 11. Bxa6 {[%emt 0:14:35]} Bxa6 {[%emt 0:00:04]} 12. Ng1 {[%emt 0:14:06]} d5 {[%emt 0:01:43]} 13. Ne2 {[%emt 0:09:05]} d4 {[%emt 0:00:09]} 14. O-O {[%emt 0:00:17]} Rd8 {[%emt 0:00:01]} 15. e4 {[%emt 0:01:01]} Qxe4 {[%emt 0:00:24]} 16. Ng3 {[%emt 0:00:49]} Qd5 {[%emt 0:01:46]} 17. Re1 {[%emt 0:00:57]} Nc6 {[%emt 0:13:43]} 18. b3 {[%emt 0:14:50]} Bb7 {[%emt 0:30:03]} 19. f3 {[%emt 0:12:01]} h6 {[%emt 0:11:32]} 20. Bb2 {[%emt 0:03:24]} Ba6 {[%emt 0:06:24]} 21. Qd2 {[%emt 0:00:57]} Ne5 {[%emt 0:01:34]} 22. Ne4 {[%emt 0:08:10]} Nxe4 {[%emt 0:08:20]} 23. Rxe4 {[%emt 0:00:01]} f5 {[%emt 0:01:57]} 24. Ree1 {[%emt 0:00:43]} Nd3 {[%emt 0:01:55]} 25. Red1 {[%emt 0:01:52]} Re8 {[%emt 0:00:41]} 26. Ba3 {[%emt 0:00:50]} Re3 {[%emt 0:02:18]} 27. Qa5 {[%emt 0:00:19]} Bb7 {[%emt 0:08:11]} 28. Rxd3 {[%emt 0:02:36]} Rxd3 {[%emt 0:00:09]} 29. Qxc5 {[%emt 0:00:06]} Qe6 {[%emt 0:01:42]} 30. Qe7 {[%emt 0:00:30]} Qe3+ {[%emt 0:03:10]} 31. Kh1 {[%emt 0:01:35]} Qxe7 {[%emt 0:00:35]} 32. Bxe7 {[%emt 0:00:02]} Rd2 {[%emt 0:00:24]} 33. Kg1 {[%emt 0:00:49]} d3 {[%emt 0:00:23]} 34. Bb4 {[%emt 0:00:18]} Rc2 {[%emt 0:00:32]} 35. Rd1 {[%emt 0:00:22]} Ba6 {[%emt 0:00:29]} 36. Rd2 {[%emt 0:00:06]} Rc1+ {[%emt 0:00:35]} 37. Kf2 {[%emt 0:00:01]} f4 {[%emt 0:00:23]} 38. g3 {[%emt 0:00:28]} fxg3+ {[%emt 0:00:40]} 39. hxg3 {[%emt 0:00:06]} Kf7 {[%emt 0:00:27]} 40. Ke3 {[%emt 0:01:43]} Re1+ {[%emt 0:00:33]} 41. Kd4 {[%emt 0:00:36]} Rg1 {[%emt 0:00:08]} 42. Bd6 {[%emt 0:00:39]} Rc1 {[%emt 0:00:55]} 43. Bf4 {[%emt 0:01:45]} Rf1 {[%emt 0:00:12]} 44. b4 {[%emt 0:00:36]} Ke6 {[%emt 0:00:25]} 45. Kc5 {[%emt 0:00:48]} Rb1 {[%emt 0:00:54]} 46. a4 {[%emt 0:00:12]} Rb3 {[%emt 0:00:22]} 47. b5 {[%emt 0:00:32]} Bb7 {[%emt 0:00:39]} 48. Rf2 {[%emt 0:01:04]} Ra3 {[%emt 0:00:28]} 49. a5 {[%emt 0:00:28]} Bd5 {[%emt 0:00:32]} 50. a6 {[%emt 0:00:21]} g5 {[%emt 0:00:14]} 51. Bd2 {[%emt 0:00:49]} Ra2 {[%emt 0:00:24]} 52. g4 {[%emt 0:00:14]} Rc2+ {[%emt 0:00:50]} 53. Kb6 {[%emt 0:00:25]} Kd7 {[%emt 0:00:30]} 54. a7 {[%emt 0:00:50]} Kc8 {[%emt 0:00:26]} 55. f4 {[%emt 0:00:35]} gxf4 {[%emt 0:00:26]} 56. Rxf4 {[%emt 0:00:01]} Rxd2 {[%emt 0:00:15]} 57. Rc4+ {[%emt 0:00:02]} Kd7 {[%emt 0:00:25]} 58. Rd4 {[%emt 0:00:01]} Ke6 {[%emt 0:00:57]} 59. Rxd5 {[%emt 0:00:01]} Kxd5 {[%emt 0:00:05]} 60. a8=Q+ {[%emt 0:00:05]} Kc4 {[%emt 0:00:12]} 61. Qc6+ {[%emt 0:00:11]} Kb3 {[%emt 0:00:12]} 62. Qxh6 {[%emt 0:00:17]} Re2 {[%emt 0:00:12]} 63. Qc1 {[%emt 0:00:25]} Rc2 {[%emt 0:00:14]} 64. Qe3 {[%emt 0:00:08]} Kc4 {[%emt 0:00:20]} 65. g5 {[%emt 0:00:19]} d2 {[%emt 0:00:06]} 66. Qe2+ {[%emt 0:00:04]} Kc3 {[%emt 0:00:11]} 67. g6 {[%emt 0:00:04]} Rc1 {[%emt 0:00:25]} 68. g7 {[%emt 0:00:01]} 1-0

[Event "48th Indian U15-ch Open 2023"]
[Site "Jalgaon"]
[Date "2023.12.30"]
[Round "5.4"]
[White "Sureka Akshat"]
[Black "Mrithyunjay Mahadevan"]
[Result "1-0"]
[WhiteElo "1808"]
[BlackElo "1944"]
[PlyCount "83"]
[EventDate "2023.12.30"]
[EventType "swiss"]
[EventCountry "IND"]
[TimeControl "5400+30"]

1. b3 {[%emt 0:00:32]} e5 {[%emt 0:00:10]} 2. Bb2 {[%emt 0:00:08]} Nc6 {[%emt 0:00:06]} 3. c4 {[%emt 0:01:31]} g6 {[%emt 0:03:56]} 4. Nc3 {[%emt 0:02:24]} Bg7 {[%emt 0:00:10]} 5. g3 {[%emt 0:00:08]} Nge7 {[%emt 0:05:10]} 6. Bg2 {[%emt 0:00:06]} O-O {[%emt 0:00:46]} 7. d3 {[%emt 0:01:26]} f5 {[%emt 0:30:26]} 8. Nd5 {[%emt 0:10:50]} d6 {[%emt 0:01:02]} 9. e3 {[%emt 0:01:05]} Be6 {[%emt 0:07:59]} 10. a3 {[%emt 0:03:56]} Rb8 {[%emt 0:12:03]} 11. Ne2 {[%emt 0:06:06]} b5 {[%emt 0:01:04]} 12. Qc2 {[%emt 0:01:03]} bxc4 {[%emt 0:01:26]} 13. dxc4 {[%emt 0:00:19]} Bf7 {[%emt 0:03:05]} 14. f4 {[%emt 0:11:05]} Nxd5 {[%emt 0:03:14]} 15. Bxd5 {[%emt 0:04:26]} Ne7 {[%emt 0:00:15]} 16. Bxf7+ {[%emt 0:00:31]} Rxf7 {[%emt 0:00:02]} 17. O-O {[%emt 0:09:07]} c6 {[%emt 0:03:40]} 18. fxe5 {[%emt 0:02:39]} dxe5 {[%emt 0:00:15]} 19. b4 {[%emt 0:00:15]} a5 {[%emt 0:01:13]} 20. Bc3 {[%emt 0:02:44]} Qb6 {[%emt 0:05:57]} 21. Bd2 {[%emt 0:17:59]} axb4 {[%emt 0:02:53]} 22. axb4 {[%emt 0:00:07]} f4 {[%emt 0:00:51]} 23. Qb3 {[%emt 0:18:02]} Nf5 {[%emt 0:09:27]} 24. c5 {[%emt 0:02:21]} Qb5 {[%emt 0:00:05]} 25. Ra7 {[%emt 0:00:09]} Rbf8 {[%emt 0:00:25]} 26. Rf2 {[%emt 0:01:37]} f3 {[%emt 0:00:53]} 27. e4 {[%emt 0:00:46]} fxe2 {[%emt 0:04:24]} 28. exf5 {[%emt 0:00:07]} g5 {[%emt 0:00:19]} 29. f6 {[%emt 0:01:00]} Bh6 {[%emt 0:00:02]} 30. Rxf7 {[%emt 0:00:51]} Rxf7 {[%emt 0:00:07]} 31. Qe3 {[%emt 0:00:14]} Qa4 {[%emt 0:00:40]} 32. Qxe2 {[%emt 0:00:25]} Qa1+ {[%emt 0:00:18]} 33. Kg2 {[%emt 0:00:12]} Qd4 {[%emt 0:00:09]} 34. Qh5 {[%emt 0:00:52]} Qe4+ {[%emt 0:03:46]} 35. Kg1 {[%emt 0:00:06]} Qb1+ {[%emt 0:00:10]} 36. Kg2 {[%emt 0:00:52]} Qe4+ {[%emt 0:00:26]} 37. Kg1 {[%emt 0:01:41]} Qb1+ {[%emt 0:00:05]} 38. Rf1 {[%emt 0:00:02]} Qg6 {[%emt 0:00:54]} 39. Qxg6+ {[%emt 0:00:07]} hxg6 {[%emt 0:00:02]} 40. h4 {[%emt 0:01:26]} Rd7 {[%emt 0:00:44]} 41. hxg5 {[%emt 0:00:00]} Rxd2 {[%emt 0:01:09]} 42. f7+ {[%emt 0:00:00]} 1-0

[Event "48th Indian U15-ch Open 2023"]
[Site "Jalgaon"]
[Date "2023.12.30"]
[Round "5.5"]
[White "Samyak Dharewa"]
[Black "Pavan Karthikeya Varma Gunturi"]
[Result "1/2-1/2"]
[WhiteElo "1939"]
[BlackElo "1538"]
[PlyCount "118"]
[EventDate "2023.12.30"]
[EventType "swiss"]
[EventCountry "IND"]
[TimeControl "5400+30"]

1. e4 {[%emt 0:00:04]} e5 {[%emt 0:00:09]} 2. Nf3 {[%emt 0:00:10]} Nc6 {[%emt 0:00:06]} 3. Bb5 {[%emt 0:00:14]} a6 {[%emt 0:00:18]} 4. Ba4 {[%emt 0:00:03]} Nf6 {[%emt 0:00:18]} 5. Qe2 {[%emt 0:00:11]} b5 {[%emt 0:00:13]} 6. Bb3 {[%emt 0:00:13]} Bc5 {[%emt 0:00:43]} 7. c3 {[%emt 0:00:18]} d6 {[%emt 0:00:58]} 8. d3 {[%emt 0:00:19]} h6 {[%emt 0:12:27]} 9. h3 {[%emt 0:01:37]} O-O {[%emt 0:01:03]} 10. Nbd2 {[%emt 0:00:55]} Bb6 {[%emt 0:00:30]} 11. Nf1 Ne7 {[%emt 0:00:30]} 12. Be3 {[%emt 0:01:00]} Bxe3 {[%emt 0:00:30]} 13. fxe3 {[%emt 0:00:30]} c5 {[%emt 0:00:30]} 14. Ng3 {[%emt 0:38:21]} Bb7 {[%emt 0:28:41]} 15. O-O {[%emt 0:00:00]} Ng6 {[%emt 0:09:11]} 16. Nh2 {[%emt 0:00:00]} d5 {[%emt 0:08:03]} 17. Ng4 {[%emt 0:00:00]} Nxg4 {[%emt 0:01:39]} 18. Qxg4 {[%emt 0:00:00]} c4 {[%emt 0:01:41]} 19. Bc2 {[%emt 0:00:00]} dxe4 {[%emt 0:03:01]} 20. d4 {[%emt 0:00:00]} exd4 {[%emt 0:07:28]} 21. exd4 {[%emt 0:00:00]} Re8 {[%emt 0:02:58]} 22. Rae1 {[%emt 0:00:00]} b4 {[%emt 0:04:38]} 23. Nf5 {[%emt 0:01:03]} bxc3 {[%emt 0:05:06]} 24. bxc3 {[%emt 0:00:43]} Re6 {[%emt 0:02:53]} 25. h4 {[%emt 0:03:08]} Qf8 {[%emt 0:01:00]} 26. h5 {[%emt 0:02:45]} Ne7 {[%emt 0:00:27]} 27. Ng3 {[%emt 0:05:18]} e3 {[%emt 0:01:17]} 28. Ne2 {[%emt 0:21:06]} f5 {[%emt 0:02:30]} 29. Bxf5 {[%emt 0:02:08]} Nxf5 {[%emt 0:00:26]} 30. Rxf5 {[%emt 0:00:29]} Qd6 {[%emt 0:01:39]} 31. Qf4 {[%emt 0:04:13]} Qe7 {[%emt 0:01:20]} 32. Ng3 {[%emt 0:03:02]} Rf8 {[%emt 0:01:20]} 33. Rxe3 {[%emt 0:02:01]} Re8 {[%emt 0:00:46]} 34. Rxe6 {[%emt 0:01:52]} Qxe6 {[%emt 0:00:08]} 35. Re5 {[%emt 0:00:32]} Qc6 {[%emt 0:00:14]} 36. d5 {[%emt 0:02:42]} Qc5+ {[%emt 0:00:17]} 37. Kh2 {[%emt 0:02:41]} Rxe5 {[%emt 0:00:12]} 38. Qxe5 {[%emt 0:00:03]} Qxd5 {[%emt 0:00:11]} 39. Qxd5+ {[%emt 0:00:31]} Bxd5 {[%emt 0:00:05]} 40. Nf5 {[%emt 0:00:40]} Be4 {[%emt 0:02:44]} 41. Ne3 {[%emt 0:01:22]} Bd3 {[%emt 0:00:09]} 42. Kg3 {[%emt 0:00:29]} Be2 {[%emt 0:01:24]} 43. Kf4 {[%emt 0:01:10]} Bxh5 {[%emt 0:00:18]} 44. Ke5 {[%emt 0:00:07]} Be2 {[%emt 0:00:46]} 45. Kd5 {[%emt 0:01:06]} g5 {[%emt 0:01:05]} 46. Nxc4 {[%emt 0:00:49]} h5 {[%emt 0:00:22]} 47. Ne3 {[%emt 0:00:54]} Kf7 {[%emt 0:00:43]} 48. Ke5 {[%emt 0:01:54]} h4 {[%emt 0:00:57]} 49. Kf5 {[%emt 0:00:47]} g4 {[%emt 0:00:23]} 50. Nxg4 {[%emt 0:01:13]} Bf1 {[%emt 0:00:09]} 51. Ne5+ {[%emt 0:00:24]} Ke8 {[%emt 0:00:35]} 52. Nf3 {[%emt 0:00:54]} Bxg2 {[%emt 0:00:15]} 53. Nxh4 {[%emt 0:00:07]} Bd5 {[%emt 0:00:14]} 54. a3 {[%emt 0:00:14]} Kd7 {[%emt 0:00:31]} 55. Ke5 {[%emt 0:00:16]} Kc6 {[%emt 0:00:23]} 56. Kd4 {[%emt 0:00:13]} Be6 {[%emt 0:00:57]} 57. c4 {[%emt 0:00:32]} Kb6 {[%emt 0:00:24]} 58. Ng6 {[%emt 0:04:56]} Ka5 {[%emt 0:00:09]} 59. Nf4 {[%emt 0:00:01]} Bxc4 {[%emt 0:00:19]} 1/2-1/2